bitfinex-derivatives/quotes_ETHF0:USTF0_20241007
["timestamp","ask_amount","ask_price","bid_price","bid_amount"]
[1728340455955,0.81114,2450.5,2450.4,0.40815]
[1728340455956,0.403,2450.5,2450.4,0.40815]
[1728340456260,0.3868,2450.7,2450.1,0.403]
[1728340456571,0.40812,2450.6,2450.5,0.40813]
[1728340456763,0.40812,2450.6,2450.2,1.02047]
[1728340456764,0.3868,2450.7,2450.6,0.40812]
[1728340456970,0.40813,2450.6,2450.5,0.40813]
[1728340457266,0.3868,2450.7,2450.4,0.40814]
[1728340457465,0.3868,2450.7,2450.3,0.4033]
[1728340457768,0.40812,2450.6,2450.4,0.40814]
[1728340458360,0.3868,2450.7,2450.6,0.40812]
[1728340458361,0.79491,2450.7,2450.6,0.40812]
[1728340459060,0.40812,2450.6,2450.5,0.40813]
[1728340460268,0.3868,2450.7,2450.6,0.40812]
[1728340460476,0.403,2450.9,2450.3,3.6111]
[1728340460967,0.40811,2450.7,2450.6,0.40811]
[1728340461770,0.4081,2450.8,2450.7,0.4081]
[1728340462167,0.403,2450.9,2450.4,1.02039]
[1728340462676,0.81108,2450.9,2450.8,0.40809]
[1728340462874,0.40809,2450.8,2450.7,0.4081]
[1728340463968,0.81108,2450.9,2450.8,0.40809]
[1728340464169,0.40806,2451.0,2450.9,0.40807]
[1728340464573,4.48806,2451.0,2450.9,0.40807]
[1728340464781,4.48806,2451.0,2450.5,1.11533]
[1728340464782,0.8275,2451.2,2450.6,3.2078]
[1728340465075,0.40805,2451.0,2450.9,0.40806]
[1728340465670,0.8275,2451.2,2450.7,0.3902]
[1728340465877,0.8275,2451.2,2451.0,0.40805]
[1728340465878,0.40804,2451.1,2451.0,0.40805]
[1728340466272,4.48804,2451.1,2451.0,0.40805]
[1728340466573,4.08,2451.1,2451.0,0.40805]
[1728340466778,4.48805,2451.1,2451.0,0.40805]
[1728340466974,0.40805,2451.1,2451.0,0.40805]
[1728340467178,4.48805,2451.1,2451.0,0.40805]
[1728340467379,0.40806,2451.0,2450.9,0.40806]
[1728340467579,0.40805,2451.1,2451.0,0.40805]
[1728340467784,0.40808,2450.9,2450.8,0.40808]
[1728340468486,0.40808,2450.9,2450.8,0.40809]
[1728340468875,0.40808,2450.9,2450.3,1.93733]
[1728340468876,0.40804,2451.1,2450.9,0.40806]
[1728340469076,0.40805,2451.1,2450.9,0.40806]
[1728340469372,0.40805,2451.0,2450.9,0.40806]
[1728340469578,0.8275,2451.2,2450.5,3.2078]
[1728340469777,0.40809,2450.8,2450.7,0.4081]
[1728340470576,0.4081,2450.8,2450.7,0.40809]
[1728340470983,0.40811,2450.7,2450.6,0.40811]
[1728340471185,3.5981,2450.7,2450.6,0.40812]
[1728340471988,3.19,2450.7,2450.5,3.2078]
[1728340472174,0.40812,2450.6,2450.5,3.61593]
[1728340472381,0.80612,2450.6,2450.5,3.2078]
[1728340472582,5.27622,2450.6,2450.5,3.2078]
[1728340473182,5.27622,2450.6,2450.1,1.1155]
[1728340473183,0.40819,2450.2,2450.1,0.095]
[1728340473378,0.40819,2450.2,2450.0,0.40821]
[1728340473379,0.40821,2450.1,2450.0,0.40821]
[1728340473581,0.40822,2450.1,2450.0,0.40821]
[1728340474581,3.19,2450.2,2449.8,3.2078]
[1728340474582,3.59819,2450.2,2450.1,0.4082]
[1728340474979,0.7873,2450.6,2449.8,3.2078]
[1728340475176,0.7873,2450.6,2449.5,0.095]
[1728340475177,0.40829,2449.6,2449.5,0.095]
[1728340475380,0.40837,2449.1,2448.9,0.095]
[1728340475586,3.19,2449.0,2448.9,0.4084]
[1728340475780,3.19,2449.0,2448.8,0.80871]
[1728340476186,3.59839,2449.0,2448.8,0.80871]
[1728340476385,3.92,2449.3,2448.8,0.4003]
[1728340476897,3.92,2449.3,2448.9,0.4084]
[1728340476898,0.40836,2449.2,2448.9,0.4084]
[1728340477079,0.40835,2449.2,2448.8,0.4003]
[1728340477285,3.92,2449.3,2448.8,0.4003]
[1728340477487,0.40844,2448.7,2448.5,0.095]
[1728340477680,0.4084,2448.9,2448.4,0.40847]
[1728340477881,0.40843,2448.8,2448.5,0.40846]
[1728340478084,0.40843,2448.8,2448.3,3.2078]
[1728340478085,3.92,2449.1,2448.3,3.2078]
[1728340478280,0.40844,2448.7,2448.4,0.40847]
[1728340478486,4.6465,2449.0,2448.4,0.40847]
[1728340478690,0.4177,2449.0,2448.3,0.4085]
[1728340478892,1.02106,2448.8,2448.3,0.4085]
[1728340479092,3.92,2448.5,2447.9,0.095]
[1728340479390,0.40854,2448.1,2447.9,0.40856]
[1728340479801,4.94131,2448.2,2447.5,0.8125]
[1728340479994,7.1278,2447.6,2447.4,0.095]
[1728340480296,7.5412,2448.2,2447.1,3.2078]
[1728340480595,3.2078,2448.0,2447.4,3.2078]
[1728340480891,3.2078,2448.6,2447.7,3.2078]
[1728340481288,4.00994,2448.7,2448.0,3.2078]
[1728340481489,3.2078,2448.6,2448.4,0.40848]
[1728340481689,3.2078,2448.6,2448.3,0.40849]
[1728340481888,3.2078,2448.6,2448.0,3.2078]
[1728340482286,3.2078,2448.7,2448.4,0.40848]
[1728340482496,7.1278,2448.9,2448.1,0.4221]
[1728340482691,0.40845,2448.7,2448.2,0.40852]
[1728340482889,0.40845,2448.7,2448.3,0.40849]
[1728340483299,0.40844,2448.7,2448.1,0.4221]
[1728340483492,3.2078,2448.6,2448.3,0.40849]
[1728340483693,3.2078,2448.6,2448.1,0.4221]
[1728340483893,3.2078,2448.6,2448.2,0.40852]
[1728340484189,3.2078,2448.6,2448.1,0.4221]
[1728340484190,3.92,2448.9,2448.1,0.4221]
[1728340484386,3.6212,2449.0,2448.8,0.40841]
[1728340484698,3.6212,2449.0,2448.6,0.40844]
[1728340484699,0.40841,2448.9,2448.6,0.40844]
[1728340484892,3.6212,2449.0,2448.6,0.40844]
[1728340484893,0.4134,2449.0,2448.6,0.40844]
[1728340485093,0.8218,2449.0,2448.6,0.40844]
[1728340485399,0.8218,2449.0,2448.4,0.40849]
[1728340485794,0.4134,2449.0,2448.3,3.2078]
[1728340486097,0.8218,2449.0,2448.6,0.40844]
[1728340486296,0.4134,2449.0,2448.4,40.8]
[1728340486502,0.40841,2448.9,2448.6,0.40845]
[1728340486698,0.8218,2449.0,2448.7,0.40843]
[1728340486889,0.82179,2449.0,2448.7,0.40844]
[1728340487085,0.4134,2449.0,2448.4,40.8]
[1728340487287,0.4084,2448.9,2448.6,0.40844]
[1728340487496,0.4134,2449.0,2448.4,40.8]
[1728340487686,0.4084,2448.9,2448.6,0.40845]
[1728340487892,0.8218,2449.0,2448.5,0.40847]
[1728340488093,0.4084,2448.9,2448.6,0.40844]
[1728340488292,0.8218,2449.0,2448.7,0.40843]
[1728340488699,0.40841,2448.9,2448.6,3.61625]
[1728340489301,0.4134,2449.0,2448.7,0.40843]
[1728340489595,0.40841,2448.9,2448.6,3.61625]
[1728340489797,0.4134,2449.0,2448.6,3.2078]
[1728340490197,0.82179,2449.0,2448.7,0.40843]
[1728340490806,0.40839,2449.0,2448.7,0.40843]
[1728340490995,3.2078,2449.1,2448.7,0.40843]
[1728340491505,3.2078,2449.1,2448.6,3.61624]
[1728340491506,0.40841,2448.9,2448.6,3.61624]
[1728340491708,3.2078,2449.1,2448.6,3.61624]
[1728340492007,0.40843,2448.8,2448.6,3.61624]
[1728340492502,0.40844,2448.7,2448.5,0.40847]
[1728340492701,0.40843,2448.8,2448.4,3.2078]
[1728340492903,0.40843,2448.8,2448.5,0.40846]
[1728340493104,0.40845,2448.7,2448.4,3.2078]
[1728340493303,0.40845,2448.7,2448.4,0.40848]
[1728340493606,3.2078,2449.1,2448.2,0.4162]
[1728340493803,0.40845,2448.6,2448.4,0.40848]
[1728340494209,0.40845,2448.7,2448.4,0.40848]
[1728340494597,0.40844,2448.7,2448.5,0.40846]
[1728340495202,0.40845,2448.6,2448.1,44.4299]
[1728340495403,3.2078,2448.8,2448.1,44.4299]
[1728340495605,0.40848,2448.5,2448.3,0.4085]
[1728340495811,0.40848,2448.5,2448.1,44.4299]
[1728340495812,0.4085,2448.4,2448.2,0.40851]
[1728340496011,0.422,2448.6,2448.2,0.40851]
[1728340496210,0.422,2448.6,2448.1,44.4299]
[1728340496211,1.42965,2448.5,2448.1,44.4299]
[1728340496409,1.02118,2448.5,2447.7,3.4128]
[1728340496615,0.40853,2448.2,2447.7,3.63]
[1728340496910,0.40854,2448.1,2447.9,0.40856]
[1728340497115,0.40855,2448.1,2447.9,0.40856]
[1728340497299,0.422,2448.6,2448.2,0.40852]
[1728340497498,0.422,2448.6,2448.1,0.40852]
[1728340497499,0.4085,2448.3,2448.1,0.40852]
[1728340497899,0.4085,2448.3,2448.2,0.40852]
[1728340498307,0.4085,2448.3,2448.1,0.40852]
[1728340498511,0.4085,2448.3,2448.2,0.40852]
[1728340498910,0.4085,2448.3,2448.1,0.40852]
[1728340499120,3.2078,2448.5,2448.1,0.40852]
[1728340499121,3.2078,2448.5,2448.4,0.40849]
[1728340499409,0.81944,2448.7,2448.6,0.40845]
[1728340499601,0.40841,2448.9,2448.7,0.40843]
[1728340499808,0.40843,2448.8,2448.6,0.40845]
[1728340500111,0.40843,2448.8,2448.7,0.40844]
[1728340500312,0.40845,2448.7,2448.3,3.2078]
[1728340500503,8.14881,2448.9,2448.2,0.8368]
[1728340500705,8.14881,2448.9,2448.0,0.095]
[1728340500706,7.1278,2448.6,2448.0,0.095]
[1728340501018,0.4283,2448.5,2447.8,3.2078]
[1728340501313,0.83678,2448.5,2448.3,0.40849]
[1728340501511,0.4283,2448.5,2448.4,0.40849]
[1728340501710,3.2078,2448.6,2448.5,0.40847]
[1728340501911,3.2078,2448.6,2448.2,3.2078]
[1728340501912,0.4283,2448.8,2448.7,0.40844]
[1728340502114,0.3896,2449.0,2448.7,0.40843]
[1728340502305,0.3896,2449.0,2448.5,3.2078]
[1728340502306,0.8179,2449.0,2448.5,3.2078]
[1728340502510,0.79799,2449.0,2448.9,0.4084]
[1728340502710,0.4034,2449.3,2449.1,0.40836]
[1728340502711,0.3902,2449.3,2449.1,0.40836]
[1728340502914,0.3902,2449.3,2448.6,1.02112]
[1728340502915,0.3902,2449.3,2449.0,0.40837]
[1728340503305,0.3902,2449.3,2448.8,3.2078]
[1728340503613,0.3902,2449.3,2448.9,0.4182]
[1728340503808,0.3902,2449.3,2448.5,4.32396]
[1728340504006,0.3902,2449.3,2449.0,0.40839]
[1728340504007,0.40838,2449.1,2449.0,0.40839]
[1728340504207,0.40838,2449.1,2448.9,0.4084]
[1728340504413,0.40838,2449.1,2448.9,0.40839]
[1728340504810,0.40839,2449.0,2448.8,3.2078]
[1728340505314,1.41107,2449.3,2448.9,0.40839]
[1728340505510,0.4084,2449.0,2448.8,3.61621]
[1728340505905,1.02089,2449.2,2448.8,3.61621]
[1728340505906,0.4084,2448.9,2448.8,3.61621]
[1728340506512,0.4084,2449.0,2448.6,0.4182]
[1728340506811,4.94089,2449.2,2448.5,3.2078]
[1728340507012,4.94089,2449.2,2448.3,0.415]
[1728340507013,0.40845,2448.7,2448.3,0.415]
[1728340507410,0.83282,2448.8,2448.7,0.40843]
[1728340507813,0.83283,2448.8,2448.4,0.40849]
[1728340508013,0.83283,2448.8,2448.3,0.415]
[1728340508212,0.40844,2448.7,2448.6,0.40844]
[1728340508409,0.4244,2448.8,2448.7,0.40844]
[1728340508714,1.02092,2449.2,2448.5,3.2078]
[1728340508715,0.4084,2449.0,2448.5,3.2078]
[1728340508918,0.4084,2449.0,2448.9,0.4084]
[1728340509115,1.02089,2449.2,2448.9,0.40839]
[1728340509420,0.40839,2449.0,2448.9,0.40839]
[1728340509613,0.40838,2449.1,2449.0,0.40838]
[1728340509822,1.02095,2449.1,2448.7,0.40842]
[1728340510113,0.4084,2449.0,2448.8,0.40841]
[1728340510315,4.0153,2449.3,2448.8,0.40841]
[1728340510515,3.19,2449.1,2448.9,0.4084]
[1728340510711,0.40841,2448.9,2448.8,0.40841]
[1728340510917,3.19,2449.1,2448.6,0.3999]
[1728340511109,0.4084,2448.9,2448.8,0.40841]
[1728340511309,3.19,2449.1,2448.6,0.3999]
[1728340511510,0.40843,2448.8,2448.7,0.40843]
[1728340511721,0.40844,2448.7,2448.6,0.80835]
[1728340512124,3.19,2448.9,2448.6,0.3999]
[1728340512724,0.4084,2449.0,2448.9,0.4084]
[1728340512925,3.19,2449.1,2448.6,0.3999]
[1728340513215,0.40839,2449.0,2448.9,0.40839]
[1728340513422,7.2053,2449.3,2448.6,1.42103]
[1728340513612,8.22617,2449.3,2448.6,1.42103]
[1728340513811,0.40837,2449.1,2449.0,0.40837]
[1728340514012,0.40837,2449.1,2448.8,3.2078]
[1728340514013,0.40839,2449.0,2448.9,0.4084]
[1728340514316,5.01837,2449.3,2448.8,3.2078]
[1728340514522,0.40838,2449.1,2449.0,0.40838]
[1728340514919,0.4191,2449.3,2448.8,44.0078]
[1728340515317,0.40835,2449.2,2448.8,44.0078]
[1728340515517,0.40835,2449.2,2449.1,0.40837]
[1728340516622,0.40842,2448.8,2448.7,0.40842]
[1728340516817,3.59841,2448.9,2448.8,0.40842]
[1728340517017,0.40841,2448.9,2448.8,0.40842]
[1728340517820,3.19,2449.1,2448.6,0.3999]
[1728340518017,0.40843,2448.8,2448.7,0.40843]
[1728340518217,4.21101,2448.9,2448.3,0.415]
[1728340518412,0.8147,2448.7,2448.3,1.85465]
[1728340518616,1.22314,2448.7,2448.6,0.40845]
[1728340519221,0.40841,2448.9,2448.8,0.40841]
[1728340519520,0.8147,2449.2,2448.7,3.2078]
[1728340519827,0.8147,2449.2,2448.9,0.40839]
[1728340519828,0.40839,2449.0,2448.9,0.40839]
[1728340520132,0.8147,2449.2,2449.0,0.40837]
[1728340520133,0.40838,2449.1,2449.0,0.40837]
[1728340520422,0.4171,2449.2,2449.1,0.40837]
[1728340520719,0.82545,2449.2,2449.1,0.40837]
[1728340521318,0.4171,2449.2,2449.1,0.40837]
[1728340521720,0.82545,2449.2,2449.1,0.40837]
[1728340523322,0.4171,2449.2,2449.1,0.40837]
[1728340523522,0.4171,2449.2,2449.0,0.40837]
[1728340523523,0.40838,2449.1,2449.0,0.40837]
[1728340523923,0.82546,2449.2,2449.1,0.40837]
[1728340524122,0.4171,2449.2,2448.9,3.2078]
[1728340524325,0.40837,2449.1,2449.0,0.40837]
[1728340526026,0.4171,2449.2,2448.9,3.2078]
[1728340526234,0.82547,2449.2,2449.1,0.40837]
[1728340528533,0.40837,2449.2,2449.1,0.40836]
[1728340528732,1.80563,2449.4,2448.9,3.2078]
[1728340528733,0.402,2449.3,2448.9,3.2078]
[1728340529040,0.81035,2449.3,2449.2,0.40835]
[1728340529330,1.0207,2449.7,2449.2,3.2078]
[1728340529331,4.21069,2449.7,2449.2,3.2078]
[1728340529533,0.40833,2449.4,2449.3,0.79633]
[1728340529929,3.19,2449.5,2449.2,3.2078]
[1728340530132,0.80524,2449.3,2449.2,0.40835]
[1728340530444,3.5833,2449.7,2449.0,1.02097]
[1728340530638,0.8052,2449.6,2449.5,0.40829]
[1728340530832,0.40831,2449.5,2449.4,0.40831]
[1728340531137,0.40833,2449.4,2449.3,0.40832]
[1728340532137,3.19,2449.5,2448.9,4.22881]
[1728340532435,0.40835,2449.3,2449.2,0.40834]
[1728340532830,0.40835,2449.3,2449.2,0.40835]
[1728340533336,0.40833,2449.4,2449.3,0.40833]
[1728340533833,4.21077,2449.5,2449.2,0.40834]
[1728340533834,0.40835,2449.3,2449.2,0.40834]
[1728340534232,3.59832,2449.5,2449.4,0.40832]
[1728340534433,0.40834,2449.4,2449.3,0.40833]
[1728340534834,3.59831,2449.5,2449.4,0.40832]
[1728340535534,0.40831,2449.5,2449.4,0.4083]
[1728340538129,0.40831,2449.5,2449.2,3.6274]
[1728340538130,0.3969,2449.6,2449.2,3.6274]
[1728340538329,0.40831,2449.5,2449.4,0.40832]
[1728340538737,0.8052,2449.6,2449.5,0.4083]
[1728340538933,0.3969,2449.6,2449.5,0.4083]
[1728340539127,0.80519,2449.6,2449.5,0.4083]
[1728340539328,0.80519,2449.6,2449.3,0.3964]
[1728340539329,0.3969,2449.6,2449.3,3.2078]
[1728340539629,0.40836,2449.2,2449.1,0.40835]
[1728340539842,3.59834,2449.4,2449.3,0.40834]
[1728340540039,4.62546,2449.6,2449.2,0.40835]
[1728340540040,0.40835,2449.3,2449.2,0.40835]
[1728340540231,0.40832,2449.4,2449.3,0.40832]
[1728340540748,0.40832,2449.4,2449.3,0.40833]
[1728340540749,0.40834,2449.4,2449.3,0.40833]
[1728340540943,0.40831,2449.5,2449.4,0.40831]
[1728340541239,7.81543,2449.6,2449.5,0.4083]
[1728340541240,4.01301,2449.6,2449.5,0.4083]
[1728340541441,3.6047,2449.6,2449.1,1.02093]
[1728340541641,4.013,2449.6,2449.5,0.4083]
[1728340542145,3.6047,2449.6,2449.5,0.4083]
[1728340542636,4.01299,2449.6,2449.5,0.4083]
[1728340543235,0.80519,2449.6,2449.5,0.4083]
[1728340543739,0.3969,2449.6,2449.5,0.4083]
[1728340544138,0.80158,2449.7,2449.6,0.40829]
[1728340544139,0.80157,2449.7,2449.6,0.40829]
[1728340545638,0.80158,2449.7,2449.6,0.40829]
[1728340546837,0.3933,2449.7,2449.6,0.40829]
[1728340547542,0.80157,2449.7,2449.6,0.40829]
[1728340547843,0.3933,2449.7,2449.6,0.40829]
[1728340550235,0.80434,2449.9,2449.4,0.4271]
[1728340550433,1.19324,2449.9,2449.8,0.40825]
[1728340550839,0.40826,2449.8,2449.7,0.40825]
[1728340551037,1.19326,2449.9,2449.8,0.40825]
[1728340552352,0.3889,2449.9,2449.8,0.40825]
[1728340553044,0.4086,2450.1,2449.7,0.4191]
[1728340553045,0.81682,2450.1,2450.0,0.40822]
[1728340553345,1.20572,2450.1,2450.0,0.40822]
[1728340553747,0.7975,2450.1,2450.0,0.40822]
[1728340554347,0.7971,2450.1,2450.0,0.40822]
[1728340560247,0.3889,2450.1,2449.7,0.4191]
[1728340560546,3.19,2449.8,2449.4,0.4271]
[1728340560747,1.41707,2450.0,2449.3,4.197]
[1728340560748,3.19,2449.6,2449.3,4.197]
[1728340560952,0.80601,2449.5,2449.4,0.40832]
[1728340561141,0.3977,2449.5,2449.4,0.40832]
[1728340561344,0.3977,2449.5,2449.2,1.44638]
[1728340561345,0.40834,2449.3,2449.2,0.83384]
[1728340561554,0.7942,2449.5,2449.2,0.4255]
[1728340561746,0.40832,2449.4,2449.3,0.40834]
[1728340561949,0.7942,2449.5,2449.2,0.4255]
[1728340562149,0.7942,2449.5,2449.0,0.4113]
[1728340562150,0.83294,2449.3,2449.0,0.4113]
[1728340562347,0.83294,2449.3,2449.2,0.40835]
[1728340562646,0.4246,2449.3,2449.2,0.40835]
[1728340562846,0.83294,2449.3,2449.2,0.40835]
[1728340563044,0.4246,2449.3,2449.2,0.40835]
[1728340563641,0.83294,2449.3,2449.2,0.40835]
[1728340564158,1.81498,2449.5,2449.1,3.2078]
[1728340564159,0.3977,2449.5,2449.1,3.2078]
[1728340564457,0.8133,2450.0,2449.5,1.02076]
[1728340564644,0.40825,2449.9,2449.8,0.40825]
[1728340564845,4.0033,2450.0,2449.6,0.4142]
[1728340565047,4.0033,2450.0,2449.8,0.40825]
[1728340565457,4.0033,2450.0,2449.8,0.40824]
[1728340565751,4.41153,2450.0,2449.8,0.40824]
[1728340565950,4.41153,2450.0,2449.6,0.4142]
[1728340566155,4.0033,2450.0,2449.6,0.4142]
[1728340566356,0.40824,2449.9,2449.7,0.40826]
[1728340567044,0.40824,2449.9,2449.6,0.4142]
[1728340567359,0.40824,2449.9,2449.8,0.40825]
[1728340567551,1.2224,2450.0,2449.6,0.4142]
[1728340567855,0.40827,2449.7,2449.4,3.2078]
[1728340568158,0.40827,2449.7,2449.6,0.40829]
[1728340568351,0.40829,2449.6,2449.5,0.40829]
[1728340568748,3.19,2449.8,2449.3,0.4235]
[1728340568950,1.2224,2450.0,2448.8,4.43382]
[1728340568951,3.19,2449.4,2448.8,4.43382]
[1728340569153,0.8377,2449.3,2449.2,0.40835]
[1728340569350,0.40838,2449.1,2448.9,0.83189]
[1728340569656,0.82369,2449.0,2448.9,0.40839]
[1728340570453,0.4153,2449.0,2448.9,0.40839]
[1728340571151,0.82369,2449.0,2448.9,0.40839]
[1728340571350,4.4985,2449.0,2448.3,3.8234]
[1728340571552,3.19,2448.8,2448.2,4.0359]
[1728340571855,3.59846,2448.6,2448.4,0.40848]
[1728340572153,0.81128,2448.5,2448.3,0.40849]
[1728340572354,0.4028,2448.5,2448.4,0.40849]
[1728340573954,0.81127,2448.5,2448.4,0.40849]
[1728340574553,0.4028,2448.5,2448.4,0.40849]
[1728340575562,0.81127,2448.5,2448.4,0.40849]
[1728340575756,0.4028,2448.5,2448.4,0.40849]
[1728340576753,0.417,2448.7,2448.2,7.83099]
[1728340576955,0.82091,2448.9,2448.8,0.40842]
[1728340577265,0.40842,2448.8,2448.7,0.40843]
[1728340577463,0.4125,2448.9,2448.5,0.39]
[1728340577464,0.40844,2448.7,2448.6,0.40844]
[1728340577966,0.40846,2448.6,2448.4,0.40847]
[1728340578365,1.02106,2448.8,2448.4,0.40847]
[1728340578669,0.40847,2448.6,2448.4,0.40847]
[1728340579175,1.44016,2448.8,2448.5,0.40846]
[1728340579176,0.40844,2448.7,2448.5,0.40846]
[1728340579361,0.40845,2448.6,2448.5,0.40846]
[1728340579667,0.40844,2448.7,2448.6,0.40845]
[1728340579963,0.4191,2448.8,2448.2,6.9047]
[1728340580170,0.40845,2448.6,2448.5,0.40846]
[1728340580467,0.40847,2448.5,2448.4,0.40848]
[1728340580663,1.0211,2448.7,2448.2,0.4119]
[1728340580960,0.3874,2448.6,2448.2,0.4119]
[1728340581161,0.40848,2448.5,2448.4,0.40848]
[1728340581357,0.40848,2448.5,2448.3,0.40849]
[1728340581565,1.40857,2448.6,2448.2,0.4119]
[1728340581762,0.8141,2448.4,2448.3,0.4085]
[1728340581964,0.4056,2448.4,2448.2,0.4119]
[1728340582160,0.4085,2448.3,2448.2,0.4119]
[1728340582567,0.4085,2448.3,2448.2,0.82042]
[1728340583162,0.4085,2448.3,2448.2,0.4119]
[1728340584174,0.4085,2448.3,2447.9,6.7888]
[1728340584175,0.40854,2448.1,2448.0,0.40854]
[1728340584468,0.40853,2448.2,2448.1,0.40853]
[1728340584870,1.42978,2448.3,2448.1,0.40853]
[1728340585068,0.40853,2448.2,2448.1,0.40853]
[1728340586068,0.40853,2448.2,2447.9,3.5988]
[1728340586069,1.02128,2448.3,2447.9,3.5988]
[1728340586265,0.40855,2448.0,2447.9,3.61635]
[1728340586658,3.19,2448.1,2447.8,0.3936]
[1728340586859,0.40861,2447.7,2447.6,0.4086]
[1728340587063,0.4076,2448.0,2447.4,0.8157]
[1728340587270,4.21137,2448.1,2448.0,0.40854]
[1728340587271,0.40855,2448.1,2448.0,0.40854]
[1728340587467,1.02129,2448.3,2448.0,0.40854]
[1728340587468,0.8289,2448.4,2448.3,0.4085]
[1728340587665,0.8327,2448.6,2448.1,3.6349]
[1728340587875,0.40848,2448.5,2448.1,3.6349]
[1728340588065,4.2111,2448.7,2448.1,3.6349]
[1728340588268,0.40846,2448.6,2448.5,0.40846]
[1728340588466,3.19,2448.7,2448.1,4.75123]
[1728340588672,3.59845,2448.7,2448.6,0.40845]
[1728340588966,0.40847,2448.6,2448.5,0.40847]
[1728340589169,1.2352,2448.8,2448.1,4.75123]
[1728340589475,0.40841,2448.9,2448.8,0.40842]
[1728340589770,0.40838,2449.1,2448.9,0.40839]
[1728340589970,0.205,2449.7,2449.0,44.4024]
[1728340590173,0.40822,2450.1,2449.5,3.19]
[1728340590376,0.4236,2450.3,2449.9,3.19]
[1728340590571,3.2078,2450.4,2450.2,0.40819]
[1728340590775,3.2078,2450.4,2450.0,3.19]
[1728340591070,0.83171,2450.7,2450.4,0.40815]
[1728340591271,3.2078,2451.0,2450.6,3.19]
[1728340591474,3.61586,2451.0,2450.6,0.40811]
[1728340591771,3.19,2451.2,2450.7,3.2078]
[1728340591772,0.40803,2451.2,2450.7,3.2078]
[1728340591978,0.40802,2451.2,2450.8,0.40808]
[1728340592174,3.19,2451.2,2450.4,3.2078]
[1728340592473,0.40808,2450.9,2450.6,0.40812]
[1728340592773,0.40808,2450.9,2450.5,0.40813]
[1728340593276,0.40808,2450.9,2450.3,0.40816]
[1728340593277,3.61593,2450.6,2450.3,0.40816]
[1728340593470,3.61593,2450.6,2450.1,3.2078]
[1728340593471,0.4131,2450.9,2450.2,3.19]
[1728340593673,0.40805,2451.1,2450.4,6.3978]
[1728340593875,3.7086,2451.3,2450.4,6.3978]
[1728340593876,0.40803,2451.2,2450.8,0.40808]
[1728340594078,0.83161,2451.3,2451.0,0.40805]
[1728340594378,0.4236,2451.3,2450.7,3.2078]
[1728340594879,0.83162,2451.3,2450.9,0.40805]
[1728340595079,0.4236,2451.3,2451.1,0.40803]
[1728340595375,0.4236,2451.3,2451.0,0.40804]
[1728340595576,3.6165,2451.7,2450.7,3.3028]
[1728340596177,0.40799,2451.4,2451.1,0.40803]
[1728340596374,0.40798,2451.5,2451.2,0.40802]
[1728340596580,3.6165,2451.7,2450.8,40.8]
[1728340596967,0.40799,2451.4,2450.8,40.8]
[1728340597167,3.6165,2451.7,2450.8,40.8]
[1728340597371,0.40803,2451.2,2450.9,0.40807]
[1728340597874,0.40801,2451.3,2450.9,0.40807]
[1728340598082,1.01989,2451.6,2450.8,40.8]
[1728340598275,0.40804,2451.1,2450.8,0.40808]
[1728340598976,3.2078,2451.4,2450.7,41.1921]
[1728340599167,0.4087,2451.7,2450.4,3.2078]
[1728340599168,3.61584,2451.1,2450.4,0.40814]
[1728340599473,0.40811,2450.7,2450.4,0.40814]
[1728340599869,0.40809,2450.8,2450.5,0.40813]
[1728340600379,0.40811,2450.7,2450.4,0.40814]
[1728340600681,3.2078,2450.8,2450.2,3.2078]
[1728340600871,0.40816,2450.4,2450.1,0.40819]
[1728340601071,3.2078,2450.3,2450.1,0.40819]
[1728340601277,3.2078,2450.4,2450.1,0.40819]
[1728340601479,0.40815,2450.4,2450.1,0.40819]
[1728340601782,0.40815,2450.4,2450.2,0.40818]
[1728340602079,3.2078,2450.6,2450.2,0.40818]
[1728340602080,0.40815,2450.5,2450.2,0.40818]
[1728340602277,3.2078,2450.3,2450.1,0.4082]
[1728340602467,3.61594,2450.5,2450.2,0.40817]
[1728340602672,0.40814,2450.5,2450.2,0.40817]
[1728340602972,0.40816,2450.4,2449.8,4.0277]
[1728340603173,0.40814,2450.5,2450.2,0.40817]
[1728340603674,3.61593,2450.6,2450.3,0.40816]
[1728340603876,0.40814,2450.5,2450.3,0.40816]
[1728340604280,0.40814,2450.5,2450.0,0.095]
[1728340604281,0.40814,2450.5,2450.2,0.40818]
[1728340605275,0.40814,2450.5,2450.3,0.40817]
[1728340605876,0.40815,2450.4,2450.2,0.40818]
[1728340606774,0.40815,2450.5,2450.0,0.095]
[1728340606979,3.2078,2450.6,2449.9,3.2078]
[1728340607272,0.7982,2450.9,2449.7,0.095]
[1728340607273,1.02047,2450.2,2449.7,0.095]
[1728340607478,0.40825,2449.8,2449.6,0.40828]
[1728340608079,0.40825,2449.9,2449.6,0.40828]
[1728340608478,0.40825,2449.9,2449.7,0.40827]
[1728340608884,0.40822,2450.0,2449.8,0.40824]
[1728340609081,4.135,2450.6,2449.9,3.2078]
[1728340609282,0.40816,2450.4,2449.9,3.2078]
[1728340609482,0.40816,2450.4,2450.2,0.40818]
[1728340611283,0.40813,2450.6,2450.4,0.40815]
[1728340611483,0.40816,2450.4,2450.2,0.40818]
[1728340612282,3.2078,2450.6,2450.2,0.40818]